bitfinex/quotes_SOLUSD_20251006
["timestamp","ask_amount","ask_price","bid_price","bid_amount"]
[1759783690199,6.26841844,233.87,233.86,29.94]
[1759783690616,10.87647521,233.86,233.85,33.3]
[1759783690813,3.20241333,233.86,233.85,63.24]
[1759783691014,6.26841844,233.86,233.85,63.24]
[1759783692113,4.27570718,233.88,233.85,63.91]
[1759783692317,2.53166703,233.87,233.86,0.67]
[1759783692816,4.27570718,233.88,233.86,0.67]
[1759783693019,4.27570718,233.88,233.87,29.94]
[1759783693904,4.27533133,233.9,233.87,29.94]
[1759783695623,4.94533133,233.9,233.87,29.94]
[1759783697022,4.27533133,233.9,233.87,30.61]
[1759783698127,14.96262996,233.92,233.88,0.67]
[1759783698419,25.07476112,233.94,233.89,30.61]
[1759783698618,4.27476112,233.94,233.9,0.67]
[1759783698827,4.27476112,233.94,233.91,30.61]
[1759783699921,0.68,233.94,233.89,0.67]
[1759783700106,0.68,233.93,233.9,29.94]
[1759783700303,4.27441761,233.95,233.91,29.94]
[1759783700515,2.53319501,233.94,233.92,29.94]
[1759783700720,2.53319501,233.94,233.93,29.94]
[1759783701309,4.27441761,233.95,233.93,29.94]
[1759783703310,2.53326969,233.94,233.93,29.94]
[1759783705309,6.80787001,233.94,233.93,29.94]
[1759783707105,2.53668086,233.94,233.93,29.94]
[1759783707426,2.53778937,233.94,233.93,29.94]
[1759783707722,2.53778937,233.95,233.93,29.94]
[1759783707934,2.53778937,233.94,233.93,29.94]
[1759783708104,4.27460032,233.94,233.93,29.94]
[1759783708307,6.81238969,233.94,233.93,29.94]
[1759783710710,7.49238969,233.94,233.93,29.94]
[1759783711111,18.1788905,233.94,233.89,0.67]
[1759783711321,5.1820866,233.93,233.9,29.9]
[1759783711523,2.53778937,233.92,233.91,29.92]
[1759783711724,3.21778937,233.92,233.85,33.3]
[1759783712030,5.1820866,233.91,233.86,29.92]
[1759783712227,3.22355992,233.9,233.85,33.3]
[1759783712411,2.54355992,233.89,233.86,30.57]
[1759783712731,2.54355992,233.88,233.86,30.57]
[1759783712923,6.81943968,233.87,233.86,30.57]
[1759783714731,2.54355992,233.87,233.86,29.9]
[1759783714921,2.54355992,233.87,233.86,30.57]
[1759783715322,2.54355992,233.9,233.86,30.57]
[1759783715528,2.54355992,233.89,233.87,0.67]
[1759783715831,2.54355992,233.88,233.87,0.67]
[1759783716827,2.54355992,233.88,233.86,29.9]
[1759783717016,2.54355992,233.87,233.86,30.59]
[1759783718834,2.54355992,233.87,233.86,34.8660626]
[1759783719048,4.27494443,233.93,233.86,34.8660626]
[1759783719231,2.54355992,233.92,233.87,0.69]
[1759783719425,2.54355992,233.91,233.87,0.69]
[1759783719631,2.54355992,233.9,233.87,4.96584446]
[1759783719833,2.54355992,233.89,233.88,0.69]
[1759783725046,2.54355992,233.89,233.88,4.96569693]
[1759783729850,2.54355992,233.89,233.88,0.69]
[1759783730240,2.54355992,233.89,233.86,30.56]
[1759783730444,2.54355992,233.88,233.86,30.56]
[1759783730755,2.54355992,233.87,233.86,30.56]
[1759783732354,2.54355992,233.87,233.86,34.83604469]
[1759783733254,2.54355992,233.87,233.74,0.1]
[1759783733255,7.50943968,233.87,233.79,33.98]
[1759783733549,7.50943968,233.87,233.8,29.88]
[1759783733550,3.23355992,233.86,233.8,29.88]
[1759783733745,2.54355992,233.85,233.8,29.88]
[1759783733949,2.54355992,233.84,233.8,30.54]
[1759783734142,2.54355992,233.83,233.8,30.54]
[1759783734344,0.69,233.85,233.81,0.66]
[1759783734544,10.6889448,233.89,233.82,29.88]
[1759783734545,2.54652437,233.84,233.82,29.88]
[1759783734737,2.54652437,233.83,233.82,30.54]
[1759783735331,2.54652437,233.83,233.82,51.34]
[1759783735540,0.69,233.91,233.82,51.34]
[1759783735739,2.54801292,233.9,233.83,0.66]
[1759783736051,2.54801292,233.89,233.84,29.9]
[1759783736253,3.23801292,233.88,233.85,29.9]
[1759783736460,3.23801292,233.87,233.85,29.9]
[1759783736640,2.54801292,233.86,233.85,29.9]
[1759783737545,3.23801292,233.86,233.82,20.8]
[1759783737746,2.54801292,233.85,233.83,29.9]
[1759783737952,2.54801292,233.84,233.83,29.9]
[1759783738936,3.23801292,233.84,233.83,29.9]
[1759783739457,2.54801292,233.84,233.83,29.9]
[1759783740259,2.54801292,233.84,233.81,4.27696563]
[1759783740440,2.5495562,233.83,233.82,29.9]
[1759783742756,2.5495562,233.83,233.82,34.83679411]
[1759783743646,0.69,233.91,233.82,45.52877939]
[1759783743840,2.55006126,233.9,233.83,0.66]
[1759783744157,2.55006126,233.89,233.84,29.9]
[1759783744360,2.55006126,233.88,233.85,4.93624545]
[1759783744541,2.55006126,233.87,233.86,29.9]
[1759783745857,3.24006126,233.87,233.86,29.9]
[1759783747460,2.55006126,233.87,233.86,29.9]
[1759783747964,3.24006126,233.87,233.86,29.9]
[1759783748462,2.55006126,233.87,233.86,29.9]
[1759783751465,2.55006126,233.87,233.85,33.32]
[1759783751643,2.55006126,233.86,233.85,33.32]
[1759783751848,2.55006126,233.86,233.85,63.2]
[1759783753974,2.55006126,233.86,233.85,68.13624545]
[1759783754272,2.55006126,233.86,233.85,67.47624545]
[1759783755768,2.55006126,233.86,233.85,68.13624545]
[1759783756468,2.55006126,233.86,233.85,67.47624545]
[1759783757366,2.55006126,233.86,233.85,63.2]
[1759783757880,7.51612386,233.86,233.85,63.2]
[1759783758178,3.24006126,233.86,233.85,63.2]
[1759783759460,3.24262979,233.86,233.85,63.2]
[1759783760764,3.24262979,233.86,233.85,33.32]
[1759783761377,3.24262979,233.86,233.85,63.2]
[1759783761881,2.55262979,233.86,233.85,63.2]
[1759783765289,3.26262979,233.86,233.85,63.2]
[1759783765666,2.55262979,233.86,233.85,63.2]
[1759783765983,3.26262979,233.86,233.85,63.2]
[1759783766374,3.26262979,233.86,233.85,33.32]
[1759783766672,7.53869239,233.86,233.85,63.2]
[1759783767175,2.55262979,233.86,233.85,33.32]
[1759783767380,3.26262979,233.86,233.85,63.2]
[1759783767781,2.55262979,233.86,233.85,63.2]
[1759783769169,2.55262979,233.86,233.85,63.91]
[1759783769596,2.55262979,233.86,233.85,68.18624545]
[1759783769800,0.71,233.95,233.85,68.18624545]
[1759783769999,2.55328115,233.94,233.86,0.71]
[1759783770184,2.55328115,233.93,233.87,29.88]
[1759783770489,2.55328115,233.92,233.88,0.71]
[1759783770693,2.55328115,233.91,233.89,29.88]
[1759783770895,2.55328115,233.9,233.89,30.59]
[1759783771284,2.55328115,233.9,233.89,34.86551413]
[1759783774993,2.55246711,233.9,233.89,34.86551413]
[1759783775192,10.68479432,233.98,233.89,34.86551413]
[1759783775193,2.55246711,233.93,233.89,34.86551413]
[1759783775375,2.55246711,233.92,233.9,0.71]
[1759783775578,0.71,233.96,233.91,29.88]
[1759783775880,2.55257177,233.95,233.92,0.71]
[1759783776072,2.55257177,233.94,233.93,29.88]
[1759783776277,2.55257177,233.94,233.93,30.57]
[1759783776998,0.71,233.98,233.93,30.57]
[1759783776999,2.55257177,233.97,233.93,34.84478305]
[1759783777188,2.55257177,233.96,233.94,0.69]
[1759783777385,0.71,233.98,233.95,29.88]
[1759783777593,2.55149182,233.97,233.95,29.88]
[1759783777789,2.55149182,233.96,233.95,29.88]
[1759783777982,2.55149182,233.96,233.95,30.57]
[1759783778186,2.55149182,234.0,233.95,30.57]
[1759783778405,2.55149182,233.99,233.95,30.57]
[1759783778603,2.55149182,233.98,233.95,30.57]
[1759783778809,2.55149182,233.97,233.95,30.57]
[1759783779127,2.55149182,233.96,233.95,30.57]
[1759783779284,2.55149182,233.96,233.95,34.84441761]
[1759783779487,2.55149182,233.98,233.95,34.84441761]
[1759783779809,2.55149182,233.97,233.95,34.84441761]
[1759783780005,2.55149182,233.96,233.95,34.84441761]
[1759783780307,2.55149182,233.98,233.95,34.84441761]
[1759783780720,2.55149182,233.98,233.95,34.15441761]
[1759783781008,0.69,234.01,233.96,4.96423491]
[1759783781186,2.54928942,234.0,233.97,29.88]
[1759783781510,2.54928942,234.0,233.98,0.69]
[1759783781702,0.69,234.03,233.99,29.88]
[1759783781903,3.23847442,234.02,233.99,29.88]
[1759783782099,2.54847442,234.01,233.99,29.88]
[1759783782487,2.54847442,234.01,233.99,30.57]
[1759783782687,2.54847442,234.0,233.99,30.57]
[1759783782927,2.54847442,234.0,233.99,34.8436869]
[1759783783114,4.96241429,234.06,233.99,34.8436869]
[1759783783321,2.54711989,234.05,234.0,0.69]
[1759783783629,0.69,234.04,234.01,29.88]
[1759783783827,2.54711989,234.03,234.01,29.88]
[1759783784326,0.69,234.04,234.01,29.88]
[1759783784523,2.54584888,234.03,234.01,34.15329151]
[1759783784721,4.96241429,234.06,234.01,34.15329151]
[1759783784922,3.2359585,234.05,234.01,34.15329151]
[1759783785121,3.2359585,234.04,234.01,34.15329151]
[1759783785325,0.69,234.04,234.01,34.15329151]
[1759783785626,0.2,234.07,234.01,54.95321038]
[1759783785925,0.69,234.05,234.01,50.68]
[1759783786124,0.69,234.04,234.01,54.95329104]
[1759783786510,0.2,234.07,234.01,54.95329104]
[1759783786716,2.54387263,234.06,234.01,55.64329104]
[1759783786928,3.23387263,234.06,234.01,55.64329104]
[1759783787123,0.2,234.07,234.01,55.64329104]
[1759783787425,0.69,234.05,234.02,29.88]
[1759783787627,0.69,234.04,234.02,29.88]
[1759783787834,0.69,234.03,234.02,29.88]
[1759783788019,0.69,234.03,233.98,0.69]
[1759783788220,0.69,234.03,233.99,30.54]
[1759783788530,0.69,234.04,233.99,34.81366346]
[1759783788834,0.69,234.03,233.99,34.81366346]
[1759783790216,0.69,234.03,233.99,34.15366346]
[1759783791812,0.69,234.03,233.99,34.81366346]
[1759783792126,0.69,234.03,233.99,4.93366346]
[1759783792434,0.69,234.03,234.0,29.86]
[1759783792932,0.69,234.05,234.0,0.66]
[1759783793131,0.69,234.04,234.01,29.86]
[1759783793628,0.69,234.03,233.93,0.66]
[1759783793831,2.53720416,234.02,233.91,0.66]
[1759783794031,11.56647521,234.01,233.89,4.93551413]
[1759783794332,3.22720416,234.0,233.9,50.66]
[1759783794524,3.22720416,233.99,233.9,50.66]
[1759783794726,0.69,233.98,233.9,50.66]
[1759783794932,4.96405222,233.97,233.9,54.935262]
[1759783795128,0.69,233.96,233.9,54.935262]
[1759783795832,0.69,233.96,233.9,55.595262]
[1759783800842,0.69,233.96,233.9,54.935262]
[1759783801041,0.69,233.96,233.91,4.935037]
[1759783802524,0.69,233.96,233.92,0.66]
[1759783802845,0.69,233.96,233.93,29.86]
[1759783804841,10.68250075,234.03,233.93,29.86]
[1759783805015,0.69,234.01,233.94,0.66]
[1759783805218,2.53711467,234.0,233.94,0.66]
[1759783805733,0.69,234.01,233.94,0.66]
[1759783805931,2.53794835,234.0,233.94,0.66]
[1759783806347,0.69,234.01,233.94,0.66]
[1759783806836,4.27313904,234.02,233.94,0.66]
[1759783807039,2.53867144,234.01,233.95,4.27441761]
[1759783807249,2.53867144,234.01,233.96,0.66]
[1759783807435,2.53867144,234.01,233.97,30.52]
[1759783807621,3.22867144,234.01,233.97,30.52]
[1759783807922,0.69,234.0,233.97,29.86]
[1759783809523,6.81293144,233.99,233.98,29.86]
[1759783809723,10.57334373,233.99,233.98,29.86]
[1759783809928,21.257561,233.99,233.98,29.86]
[1759783810932,21.25827663,233.99,233.98,29.86]
[1759783815849,18.18786434,233.99,233.98,29.86]
[1759783817049,21.25827663,233.99,233.98,29.86]
[1759783817251,10.87647521,233.98,233.89,33.98]
[1759783817453,3.07041229,233.96,233.9,29.86]
[1759783817756,4.27460032,233.94,233.9,29.86]
[1759783818052,2.53996017,233.93,233.9,29.86]
[1759783818242,2.53996017,233.92,233.91,0.71]
[1759783818451,2.53996017,233.93,233.91,0.71]
[1759783818652,2.53996017,233.92,233.91,0.71]
[1759783818838,2.53996017,233.93,233.91,0.71]
[1759783819153,2.53996017,233.92,233.91,0.71]
[1759783819336,2.53996017,233.93,233.91,30.57]
[1759783819542,6.81492597,233.92,233.89,33.32]
[1759783819743,2.53996017,233.91,233.9,29.86]
[1759783820259,2.53996017,233.91,233.9,30.57]
[1759783820456,2.53996017,233.91,233.9,29.86]
[1759783822046,2.53996017,233.92,233.9,29.86]
[1759783822366,2.53996017,233.91,233.9,29.86]
[1759783822668,6.81493833,233.92,233.9,29.86]
[1759783822976,2.53996017,233.91,233.9,29.86]
[1759783824449,2.53996017,233.93,233.9,30.57]
[1759783824646,2.53996017,233.92,233.91,0.71]
[1759783824962,2.53996017,233.92,233.9,29.86]
[1759783825142,4.27474676,233.94,233.9,30.57]
[1759783825343,2.54543496,233.93,233.9,30.57]
[1759783827155,6.82024337,233.93,233.9,30.57]
[1759783827349,2.54543496,233.92,233.9,30.57]
[1759783827554,2.54543496,233.92,233.9,29.86]
[1759783830167,2.54543496,233.92,233.9,30.57]
[1759783830760,2.54543496,233.92,233.9,34.84531609]
[1759783830960,0.67,233.97,233.91,0.71]
[1759783831269,2.54480527,233.96,233.91,0.71]
[1759783831570,3.21514793,233.95,233.92,29.88]
[1759783831765,2.54514793,233.94,233.92,29.88]
[1759783832067,2.54514793,233.93,233.92,29.88]
[1759783832649,2.54514793,233.94,233.92,29.88]
[1759783832849,2.54514793,233.93,233.92,29.88]
[1759783833454,2.54514793,233.94,233.91,0.71]
[1759783833660,2.54514793,233.93,233.92,29.88]
[1759783834069,2.54514793,233.93,233.89,33.32]
[1759783834070,3.21514793,233.93,233.89,33.32]
[1759783834273,7.49028891,233.92,233.75,26.12750715]
[1759783834468,3.21514793,233.91,233.84,0.71]
[1759783834663,2.54514793,233.9,233.85,29.86]
[1759783834969,3.21514793,233.89,233.85,29.86]
[1759783835272,4.27514098,233.92,233.85,29.86]
[1759783835273,3.21514793,233.88,233.85,29.86]
[1759783835578,6.82105002,233.87,233.84,0.71]
[1759783835764,6.82105002,233.87,233.85,29.86]
[1759783835765,2.54514793,233.86,233.85,29.86]
[1759783836277,2.54514793,233.86,233.85,30.57]
[1759783836485,4.27514323,233.92,233.85,30.57]
[1759783836656,2.54552521,233.91,233.86,0.66]
[1759783836854,2.54552521,233.9,233.86,0.66]
[1759783837163,2.54552521,233.89,233.86,0.66]
[1759783837350,2.54552521,233.88,233.86,0.66]
[1759783837552,4.27514323,233.92,233.86,4.93592256]
[1759783837872,2.54628457,233.91,233.87,0.66]
[1759783838065,2.54628457,233.9,233.88,29.88]
[1759783838372,2.54628457,233.89,233.88,29.88]
[1759783838972,2.54678161,233.89,233.88,29.88]
[1759783839186,2.54678161,233.91,233.88,29.88]
[1759783839469,2.54678161,233.9,233.88,29.88]
[1759783839658,2.54678161,233.89,233.88,29.88]
[1759783840981,2.54524873,233.89,233.88,29.88]
[1759783841760,2.54493422,233.89,233.88,29.88]
[1759783844556,2.54493422,233.9,233.88,29.88]
[1759783844777,2.54493422,233.89,233.88,29.88]
[1759783844980,2.54493422,233.9,233.88,29.88]
[1759783845194,2.54493422,233.89,233.88,29.88]
[1759783846080,2.54493422,233.9,233.88,29.88]
[1759783846255,2.54493422,233.89,233.88,29.88]
[1759783846574,2.54493422,233.89,233.88,30.54]
[1759783846772,2.54493422,233.9,233.88,30.54]
[1759783846977,2.54493422,233.89,233.88,30.54]
[1759783847155,2.54493422,233.91,233.88,29.88]
[1759783847358,2.54493422,233.9,233.88,29.88]
[1759783847680,2.54493422,233.89,233.88,29.88]
[1759783847864,2.54493422,233.9,233.88,29.88]
[1759783848058,2.54493422,233.89,233.88,29.88]
[1759783848782,2.54493422,233.9,233.88,29.88]
[1759783848955,2.54493422,233.89,233.88,29.88]
[1759783849156,2.54493422,233.9,233.88,30.56]
[1759783849386,2.54493422,233.89,233.88,29.88]
[1759783849582,2.54493422,233.89,233.88,34.15562503]
[1759783849783,2.54493422,233.92,233.88,34.83562503]
[1759783849967,2.54493422,233.91,233.89,0.68]
[1759783850176,2.54493422,233.9,233.89,0.68]
[1759783850477,2.54493422,233.92,233.88,34.15562503]
[1759783850681,2.54493422,233.91,233.88,34.15562503]
[1759783850881,2.54493422,233.9,233.88,34.15562503]
[1759783851081,2.54493422,233.89,233.88,34.15562503]
[1759783851281,2.54493422,233.92,233.88,34.15562503]
[1759783851685,2.5428933,233.91,233.89,0.68]
[1759783851882,2.5428933,233.9,233.88,29.88]
[1759783852082,2.5427206,233.89,233.88,30.56]
[1759783852579,2.5427206,233.92,233.88,30.56]
[1759783852886,2.5427206,233.91,233.88,30.56]
[1759783853097,2.5427206,233.9,233.88,30.56]
[1759783853270,2.5427206,233.89,233.88,30.56]
[1759783853883,4.92509041,233.92,233.88,30.56]
[1759783854087,2.5433342,233.91,233.88,30.56]
[1759783854403,2.5433342,233.9,233.88,30.56]
[1759783854570,2.5433342,233.89,233.88,30.56]
[1759783855277,3.1933342,233.89,233.85,4.27623292]
[1759783855472,2.5433342,233.88,233.86,30.54]
[1759783855673,2.5433342,233.87,233.86,30.54]
[1759783855880,2.5433342,233.9,233.86,30.54]
[1759783856088,2.5433342,233.89,233.86,30.54]
[1759783856275,2.5433342,233.88,233.86,30.54]
[1759783856467,2.5433342,233.87,233.86,30.54]
[1759783856667,2.5433342,233.87,233.86,34.1360626]
[1759783856884,2.5433342,233.92,233.86,34.1360626]
[1759783857082,2.5433342,233.91,233.86,34.1360626]
[1759783857382,2.5433342,233.9,233.87,0.68]
[1759783857561,2.5433342,233.89,233.88,29.86]
[1759783857762,2.5433342,233.89,233.88,30.54]
[1759783858781,2.54506631,233.89,233.88,30.54]
[1759783858983,2.54506631,233.89,233.88,34.81569693]
[1759783861181,2.54506631,233.89,233.88,30.54]
[1759783861580,2.54506631,233.89,233.88,34.81569693]
[1759783861780,2.54677335,233.89,233.88,34.81569693]
[1759783865379,2.54677335,233.89,233.88,30.54]
[1759783870703,6.82232742,233.89,233.83,4.92483604]
[1759783870891,3.19677335,233.88,233.84,26.46]
[1759783871214,3.19677335,233.87,233.84,26.46]
[1759783871389,6.82296514,233.86,233.84,26.46]
[1759783871589,3.19677335,233.85,233.84,26.46]
[1759783872005,3.19677335,233.85,233.81,33.32]
[1759783872304,2.54677335,233.84,233.82,29.86]
[1759783872501,2.54677335,233.83,233.82,29.86]
[1759783872802,0.65,233.9,233.82,29.86]
[1759783872979,2.54716387,233.89,233.85,20.8]
[1759783873182,2.54716387,233.88,233.86,30.54]
[1759783873488,2.54716387,233.87,233.86,29.86]
[1759783875403,2.54716387,233.87,233.85,54.12]
[1759783875588,2.54716387,233.86,233.85,54.8]
[1759783875788,2.54716387,233.86,233.85,84.66]
[1759783876813,3.19716387,233.86,233.85,83.98]
[1759783877001,3.19716387,233.86,233.85,54.12]
[1759783877204,3.19716387,233.86,233.85,83.98]
[1759783877906,2.54716387,233.86,233.85,83.98]
[1759783880022,2.54766139,233.86,233.85,83.98]
[1759783882821,2.54766139,233.86,233.85,84.66]
[1759783888005,0.71,233.95,233.85,84.66]
[1759783888211,2.54829925,233.94,233.86,0.68]
[1759783888413,2.54829925,233.93,233.87,29.86]
[1759783888711,2.54829925,233.92,233.9,20.8]
[1759783889018,0.71,233.95,233.9,20.8]
[1759783889019,0.71,233.95,233.91,29.86]
[1759783889213,2.54843239,233.94,233.91,29.86]
[1759783889418,2.54843239,233.93,233.91,29.86]
[1759783889619,2.54843239,233.92,233.91,29.86]
[1759783894722,2.54843239,233.92,233.91,30.54]
[1759783897820,2.54843239,233.92,233.91,29.86]
[1759783898316,2.54843239,233.92,233.91,30.53]
[1759783898518,2.54843239,233.92,233.91,29.86]
[1759783908228,2.54843239,233.92,233.89,0.67]
[1759783908523,2.54843239,233.91,233.9,0.66]
[1759783908723,2.54843239,233.91,233.9,30.5]
[1759783909130,2.54927779,233.91,233.9,30.5]
[1759783909505,2.54927779,233.91,233.9,0.66]
[1759783909710,2.54927779,233.91,233.9,30.5]
[1759783909936,2.54927779,233.91,233.9,0.66]
[1759783910440,2.54927779,233.91,233.9,30.5]
[1759783911819,2.54918652,233.91,233.9,29.84]
[1759783912124,2.54918652,233.91,233.9,30.5]
[1759783917140,2.54918652,233.91,233.9,29.84]
[1759783917528,2.54918652,233.91,233.9,63.16]
[1759783918944,2.54918652,233.91,233.9,33.32]
[1759783919140,3.24918652,233.91,233.9,33.32]
[1759783919434,2.54918652,233.91,233.9,63.16]
[1759783919811,3.24918652,233.91,233.9,63.16]
[1759783920016,3.24918652,233.91,233.9,33.32]
[1759783920413,3.24918652,233.91,233.9,63.14]
[1759783920827,3.24918652,233.91,233.82,0.66]
[1759783921024,2.54918652,233.9,233.83,63.14]
[1759783921341,3.24918652,233.89,233.86,20.8]
[1759783921645,3.24918652,233.88,233.87,29.82]
[1759783929940,3.24918652,233.88,233.86,20.8]
[1759783930121,0.7,233.88,233.87,29.82]
[1759783930321,3.25121902,233.88,233.87,29.82]
[1759783930816,3.25121902,233.88,233.84,0.66]
[1759783931047,3.25121902,233.87,233.78,33.32]
[1759783931349,31.67647521,233.94,233.78,33.32]
[1759783931350,3.25121902,233.86,233.79,29.82]
[1759783931520,3.25121902,233.85,233.79,29.82]
[1759783931721,2.55121902,233.84,233.79,29.82]
[1759783932034,2.55121902,233.83,233.8,0.66]
[1759783932237,2.55121902,233.82,233.81,29.82]
[1759783934648,0.7,233.84,233.81,29.82]
[1759783935234,0.7,233.86,233.81,30.48]
[1759783935437,3.2432078,233.85,233.81,30.48]
[1759783935640,2.5432078,233.84,233.81,30.48]
[1759783936035,2.5432078,233.83,233.81,30.48]
[1759783936235,2.5432078,233.82,233.81,29.82]
[1759783936550,2.54300448,233.82,233.81,29.82]
[1759783937343,2.54300448,233.82,233.81,30.48]
[1759783939350,0.72,233.9,233.84,20.8]
[1759783939529,2.54270895,233.89,233.85,29.82]
[1759783939850,2.54270895,233.88,233.85,30.53]
[1759783940049,2.54270895,233.87,233.86,0.71]
[1759783940544,0.72,233.94,233.88,20.8]
[1759783940751,2.54333725,233.93,233.89,29.82]
[1759783941052,3.26333725,233.92,233.9,63.14]
[1759783941231,3.26333725,233.91,233.9,33.32]
[1759783941430,3.26333725,233.91,233.9,63.14]
[1759783941859,2.54333725,233.91,233.9,63.14]
[1759783942056,3.26333725,233.91,233.9,63.14]
[1759783943431,3.26306605,233.91,233.9,63.14]
[1759783944052,0.72,233.91,233.9,63.14]
[1759783944537,3.26294424,233.91,233.9,63.14]
[1759783945445,0.72,233.91,233.9,63.14]
[1759783946054,3.26221234,233.91,233.9,63.14]
[1759783950268,2.54221234,233.91,233.9,63.14]
[1759783951257,2.54221234,233.91,233.9,63.85]
[1759783952443,2.54193725,233.91,233.9,63.85]
[1759783953738,2.54193725,233.91,233.9,63.14]
[1759783958236,2.54193725,233.91,233.9,33.32]
[1759783958441,2.54193725,233.91,233.9,63.14]
[1759783959361,0.68,233.97,233.9,34.04]
[1759783959571,2.54096121,233.96,233.91,0.72]
[1759783959860,2.54096121,233.95,233.92,30.54]
[1759783960052,2.54096121,233.94,233.92,30.54]
[1759783960237,2.54096121,233.93,233.92,30.54]
[1759783960765,2.54096121,233.93,233.92,29.82]
[1759783960946,2.54096121,233.93,233.9,34.04]
[1759783961149,33.61447641,234.04,233.9,34.04]
[1759783961150,2.54096121,233.92,233.9,34.04]
[1759783961466,1.96369468,234.0,233.91,29.82]
[1759783961772,2.54044649,233.99,233.91,29.82]
[1759783962063,1.96369468,234.0,233.91,29.82]
[1759783962064,3.22044649,233.98,233.91,29.82]
[1759783962370,3.22044649,233.97,233.91,29.82]
[1759783962556,3.22044649,233.96,233.9,33.32]
[1759783962743,3.22044649,233.95,233.91,29.82]
[1759783962944,3.22044649,233.94,233.91,29.82]
[1759783963149,3.22044649,233.93,233.91,29.82]
[1759783963349,3.22044649,233.92,233.91,29.82]
[1759783963663,2.54044649,233.92,233.91,29.82]
[1759783965855,3.22044649,233.85,233.81,50.62]
[1759783966056,0.68,233.85,233.81,50.62]
[1759783966851,0.68,233.84,233.83,20.8]
[1759783967173,0.68,233.86,233.83,50.62]
[1759783967353,3.21850407,233.85,233.83,50.62]
[1759783967554,0.68,233.85,233.83,50.62]
[1759783968753,4.95624657,233.85,233.83,50.62]
[1759783969275,3.21823406,233.84,233.82,20.8]
[1759783969453,0.68,233.84,233.83,29.82]
[1759783969647,3.21777771,233.84,233.83,29.82]
[1759783969883,3.21777771,233.84,233.79,33.32]
[1759783970052,14.96686021,233.85,233.8,29.82]
[1759783970053,3.21777771,233.83,233.8,29.82]
[1759783970372,14.96686021,233.85,233.8,29.82]
[1759783970373,0.68,233.82,233.8,29.82]
[1759783970963,4.95695667,233.82,233.8,29.82]
[1759783971367,4.27695667,233.82,233.8,29.82]
[1759783971569,0.68,233.83,233.8,29.82]
[1759783972762,4.27617878,233.86,233.81,0.72]
[1759783973078,3.21654628,233.85,233.82,29.82]
[1759783973288,2.53654628,233.84,233.82,29.82]
[1759783973575,0.68,233.84,233.82,29.82]
[1759783975162,0.68,233.83,233.82,29.82]
[1759783978695,4.27628726,233.85,233.82,29.82]
[1759783978882,0.68,233.84,233.82,29.82]
[1759783980188,4.95628726,233.85,233.82,29.82]
[1759783980373,2.53746373,233.84,233.82,29.82]
[1759783980573,0.68,233.88,233.83,0.72]
[1759783980777,2.53759414,233.87,233.84,30.54]
[1759783980976,0.68,233.91,233.85,0.72]
[1759783981200,0.68,233.93,233.86,29.82]
[1759783981506,2.5390767,233.92,233.87,0.72]
[1759783981702,3.2190767,233.92,233.88,30.54]
[1759783981875,2.5390767,233.91,233.88,30.54]
[1759783982075,3.2190767,233.91,233.88,29.82]
[1759783982284,0.68,233.91,233.88,29.82]
[1759783983207,0.68,233.93,233.88,34.09569668]
[1759783983500,3.21894756,233.92,233.88,34.09569668]
[1759783983802,2.53894756,233.91,233.88,34.09569668]
[1759783984701,2.53894756,233.91,233.89,4.99546098]
[1759783984901,4.27407438,233.97,233.9,0.72]
[1759783985101,2.53933025,233.96,233.91,29.82]